bitfinex/quotes_ETHUSD_20241207
["timestamp","ask_amount","ask_price","bid_price","bid_amount"]
[1733575511363,0.68834948,4004.7,4004.6,2.52588]
[1733575524665,1.87203044,4005.5,4004.6,2.52588]
[1733575524882,0.86466068,4005.4,4004.9,1.74781]
[1733575525041,0.8248,4005.5,4004.9,1.74781]
[1733575525379,0.8646006,4005.4,4005.0,1.74781]
[1733575525676,0.8248,4005.5,4005.0,1.74781]
[1733575525839,0.86460897,4005.4,4005.0,1.74781]
[1733575526042,0.8248,4005.5,4004.7,2.82658858]
[1733575526287,0.86459272,4005.4,4004.8,1.74789]
[1733575526490,0.8248,4005.5,4004.8,1.74789]
[1733575526648,0.86458023,4005.4,4004.8,1.74789]
[1733575526853,0.8248,4005.5,4004.8,1.74789]
[1733575527060,0.86458117,4005.4,4005.2,1.74772]
[1733575527269,0.8248,4005.5,4005.2,1.74772]
[1733575527958,0.86454457,4005.4,4005.2,1.74772]
[1733575528166,0.8248,4005.5,4005.2,1.74772]
[1733575528887,0.8248,4005.5,4004.9,1.74782]
[1733575529125,0.86450944,4005.4,4004.9,1.74782]
[1733575529400,0.8248,4005.4,4004.5,1.07868858]
[1733575529566,0.8248,4005.4,4004.6,1.74796]
[1733575530132,0.8248,4005.4,4004.5,1.07868858]
[1733575530298,0.8645493,4005.3,4004.7,1.74793]
[1733575530591,0.8248,4005.1,4004.3,1.7481]
[1733575530954,2.98637868,4005.0,4004.3,1.7481]
[1733575531199,0.86463147,4004.9,4004.3,1.7481]
[1733575531496,1.87203044,4005.0,4004.3,1.7481]
[1733575531656,0.86466074,4004.9,4004.3,1.7481]
[1733575531857,2.21523252,4005.0,4004.3,1.7481]
[1733575532057,2.16168615,4004.9,4004.3,1.7481]
[1733575532357,2.21523252,4005.0,4004.3,1.7481]
[1733575532568,2.16172983,4004.9,4004.3,1.7481]
[1733575532750,2.21523252,4005.0,4004.3,1.7481]
[1733575532952,2.16172768,4004.9,4004.3,1.7481]
[1733575533178,2.21523252,4005.0,4004.3,1.7481]
[1733575533383,2.16178548,4004.9,4004.3,1.7481]
[1733575533569,2.21523252,4005.0,4004.3,1.7481]
[1733575533769,1.24223639,4004.9,4004.3,1.7481]
[1733575533985,0.37752229,4004.9,4004.3,1.7481]
[1733575534215,0.37752229,4004.9,4004.1,1.07868858]
[1733575534504,0.8248,4005.0,4004.4,1.74806]
[1733575535999,0.86474765,4004.9,4004.4,1.74806]
[1733575536313,0.07619473,4004.9,4004.4,1.74806]
[1733575540377,0.07619473,4004.9,4004.1,1.07868858]
[1733575540614,0.07619473,4004.9,4004.5,1.74803]
[1733575542518,0.86500584,4004.8,4004.5,1.74803]
[1733575542728,0.07619473,4004.9,4004.5,1.74803]
[1733575543023,0.07601735,4004.7,4004.5,1.74803]
[1733575543323,0.07601735,4004.8,4004.5,1.74803]
[1733575543532,1.87203044,4005.0,4004.5,1.74803]
[1733575543688,0.07601735,4004.7,4004.5,1.74803]
[1733575543891,0.8248,4005.0,4004.5,1.74803]
[1733575544116,0.07601735,4004.6,4004.5,1.74803]
[1733575544291,1.87203044,4005.0,4004.5,1.74803]
[1733575544488,0.07601735,4004.6,4004.5,1.74803]
[1733575544723,0.8248,4005.0,4004.5,1.74803]
[1733575544922,0.07601735,4004.6,4004.5,1.74803]
[1733575545229,1.29759717,4004.9,4004.5,1.74803]
[1733575545397,0.07601735,4004.6,4004.5,1.74803]
[1733575545597,0.07601735,4004.6,4004.1,1.07868858]
[1733575545829,0.07385435,4004.6,4004.3,1.74811]
[1733575545995,1.04723044,4004.9,4004.3,1.74811]
[1733575546332,2.23666052,4004.8,4004.3,1.74811]
[1733575546506,0.07385435,4004.8,4004.3,1.74811]
[1733575547098,0.7744,4004.7,4004.3,1.74811]
[1733575547498,0.07385435,4004.6,4004.3,1.74811]
[1733575550257,0.07385435,4004.6,4004.3,2.06676984]
[1733575550615,0.07385435,4004.6,4004.3,1.74811]
[1733575552755,0.07385435,4004.6,4004.4,1.74805]
[1733575553109,1.82163044,4005.0,4004.4,1.74805]
[1733575553309,3.28447842,4004.9,4004.4,1.74805]
[1733575553514,0.86539774,4004.8,4004.4,1.74805]
[1733575553715,1.82163044,4005.0,4004.4,1.74805]
[1733575553963,0.07375362,4004.7,4004.4,1.74805]
[1733575554139,1.04723044,4004.9,4004.4,1.74805]
[1733575554347,0.07375362,4004.6,4004.4,1.74805]
[1733575554655,1.04723044,4004.9,4004.4,1.74805]
[1733575554838,0.07375362,4004.5,4004.4,1.74805]
[1733575555536,1.04723044,4004.9,4004.4,1.74805]
[1733575555742,0.07375362,4004.5,4004.4,1.74805]
[1733575556966,1.04723044,4004.9,4004.4,1.74805]
[1733575557174,0.07375362,4004.5,4004.4,1.74805]
[1733575557331,1.04723044,4004.9,4004.4,1.74805]
[1733575557662,2.16376723,4004.8,4004.4,1.74805]
[1733575557873,0.93926051,4004.7,4004.4,1.74805]
[1733575558039,0.07375362,4004.7,4004.4,1.74805]
[1733575558474,0.07375362,4004.6,4004.4,1.74805]
[1733575558635,1.04723044,4004.8,4004.4,1.74805]
[1733575558831,0.86553411,4004.7,4004.4,1.74805]
[1733575559165,0.07375362,4004.7,4004.4,1.74805]
[1733575559754,1.04723044,4004.8,4004.4,1.74805]
[1733575560070,2.16387276,4004.7,4004.4,1.74805]
[1733575560363,0.9392889,4004.6,4004.4,1.74805]
[1733575560569,0.07375362,4004.6,4004.4,1.74805]
[1733575560960,1.04723044,4004.8,4004.4,1.74805]
[1733575561144,0.07375362,4004.5,4004.4,1.74805]
[1733575561343,1.04723044,4004.8,4004.4,1.74805]
[1733575561565,0.07373672,4004.5,4004.4,1.74805]
[1733575561736,1.04723044,4004.8,4004.4,1.74805]
[1733575562067,0.86560243,4004.7,4004.4,1.74807]
[1733575562375,0.07373672,4004.6,4004.4,1.74807]
[1733575562739,1.04723044,4004.8,4004.4,1.74807]
[1733575562945,0.07373672,4004.5,4004.4,1.74807]
[1733575563145,1.04723044,4004.8,4004.4,1.74807]
[1733575563346,0.07373672,4004.5,4004.4,1.74807]
[1733575563557,2.33439035,4005.0,4004.5,1.74802]
[1733575563558,1.04723044,4004.9,4004.5,1.74802]
[1733575563744,3.21130802,4004.8,4004.5,1.74802]
[1733575563959,0.86563103,4004.7,4004.5,1.74802]
[1733575564160,1.12096716,4004.8,4004.5,1.74802]
[1733575564468,2.23792904,4004.7,4004.5,1.74802]
[1733575564669,0.86567336,4004.6,4004.1,1.07868858]
[1733575564881,1.04723044,4004.7,4004.3,1.74811]
[1733575565190,0.93945618,4004.6,4004.3,1.74811]
[1733575565341,0.07373672,4004.6,4004.3,1.74811]
[1733575565541,0.86576369,4004.5,4004.3,1.74811]
[1733575565741,0.07373672,4004.6,4004.3,1.74811]
[1733575565940,1.04723044,4004.7,4004.3,1.74811]
[1733575565941,0.86576205,4004.5,4004.3,1.74811]
[1733575566167,0.07373672,4004.5,4003.9,0.7711]
[1733575566375,1.68210555,4004.4,4004.0,1.74824]
[1733575566585,0.8163,4004.4,4004.0,1.74824]
[1733575566799,0.93958878,4004.3,4004.0,1.74824]
[1733575567079,0.07373672,4004.3,4003.9,0.7711]
[1733575567384,0.07373672,4004.3,4004.1,1.7482]
[1733575568483,0.07373672,4004.3,4004.0,1.9253054]
[1733575570583,0.07373672,4004.3,4003.7,0.999654]
[1733575570786,0.07373672,4004.3,4003.9,1.74828]
[1733575570997,0.07373672,4004.3,4003.8,1.07868858]
[1733575571150,0.07373672,4004.3,4004.1,1.74816]
[1733575573269,0.07373672,4004.3,4004.2,1.74816]
[1733575573489,0.93979732,4004.3,4004.2,1.74816]
[1733575574293,2.2390553,4004.3,4004.2,1.74816]
[1733575577691,2.23944325,4004.3,4004.2,1.74816]
[1733575579487,2.23944325,4004.3,4003.9,1.74825]
[1733575579679,0.86628261,4004.2,4003.9,1.74825]
[1733575579885,0.07364798,4004.1,4003.9,1.74825]
[1733575580187,1.04723044,4004.3,4003.9,1.74825]
[1733575580407,0.07364798,4004.0,4003.9,1.74825]
[1733575580618,0.7845,4004.1,4003.9,1.74825]
[1733575580775,0.07364798,4004.0,4003.9,1.74825]
[1733575581401,0.07364798,4004.0,4003.7,0.999654]
[1733575581612,0.07364798,4004.0,4003.8,1.74833]
[1733575583497,0.07364798,4004.0,4003.7,0.999654]
[1733575583824,3.21255743,4003.9,4003.7,0.999654]
[1733575584118,0.93958484,4003.8,4003.7,0.999654]
[1733575584418,3.02675655,4003.8,4003.7,0.999654]
[1733575584612,4.45511265,4003.8,4003.7,0.999654]
[1733575586414,3.02675655,4003.8,4003.7,0.999654]
[1733575587399,3.02545969,4003.8,4003.7,0.999654]
[1733575588119,3.02545969,4003.8,4003.7,2.748034]
[1733575588120,0.93905156,4003.8,4003.7,2.748034]
[1733575588292,0.07351281,4003.8,4003.7,2.748034]
[1733575588612,1.04723044,4004.3,4003.7,2.748034]
[1733575588613,1.29811016,4004.2,4003.9,1.74828]
[1733575588820,0.86540426,4004.1,4004.0,1.74825]
[1733575588993,1.04723044,4004.3,4003.7,0.999654]
[1733575588994,1.04723044,4004.3,4004.1,1.74817]
[1733575589177,2.16355573,4004.2,4004.1,1.74817]
[1733575589596,0.86542229,4004.2,4004.1,1.74817]
[1733575589798,0.86542229,4004.2,4004.1,1.922987]
[1733575590022,1.04723044,4004.5,4004.1,2.729687]
[1733575590295,0.86539043,4004.4,4004.3,1.74812]
[1733575590458,1.04723044,4004.9,4004.6,1.74795]
[1733575590601,0.86528368,4004.8,4004.6,1.74795]
[1733575590942,1.04723044,4005.0,4004.6,1.74795]
[1733575591102,1.04723044,4004.8,4004.6,1.74795]
[1733575591298,0.86533076,4004.7,4004.6,1.74795]
[1733575591933,1.04723044,4004.9,4004.6,1.74795]
[1733575592441,0.86531682,4004.8,4004.6,1.74795]
[1733575592755,2.34809035,4005.1,4004.6,1.74795]
[1733575592756,1.04723044,4005.0,4004.6,1.74795]
[1733575592912,2.16323393,4004.9,4004.6,1.74795]
[1733575593261,2.1632743,4004.8,4004.6,1.74795]
[1733575593454,1.04723044,4004.9,4004.6,1.74795]
[1733575593455,0.86529357,4004.7,4004.6,1.74795]
[1733575596332,0.93850641,4004.7,4004.6,1.74795]
[1733575596939,0.93852993,4004.7,4004.6,1.74795]
[1733575597326,2.23653732,4004.7,4004.3,1.7481]
[1733575597552,1.62101709,4004.6,4004.3,1.7481]
[1733575597868,0.7557,4004.6,4004.3,1.7481]
[1733575598071,0.07368604,4004.5,4004.4,1.74806]
[1733575598565,2.31569035,4005.0,4004.4,1.74806]
[1733575598566,1.04723044,4004.9,4004.4,1.74806]
[1733575598772,0.07366069,4004.5,4004.4,1.74806]
[1733575599076,1.04723044,4004.9,4004.6,1.74798]
[1733575599371,2.16330988,4004.8,4004.6,1.74798]
[1733575599541,1.04723044,4004.9,4004.6,1.74798]
[1733575599742,0.86533218,4004.8,4004.6,1.74798]
[1733575599946,1.04723044,4004.9,4004.6,1.74798]
[1733575600173,0.86533009,4004.8,4004.6,1.74798]
[1733575600389,1.04723044,4004.9,4004.6,1.74798]
[1733575600678,0.86531972,4004.8,4004.6,1.74798]
[1733575600883,1.80293044,4005.0,4004.6,1.74798]
[1733575601057,0.86529035,4004.9,4004.6,1.74798]
[1733575601380,0.86531901,4004.8,4004.6,1.74798]
[1733575601595,1.80293044,4005.0,4004.6,1.74798]
[1733575601743,2.16326913,4004.9,4004.6,1.74798]
[1733575601943,0.86530765,4004.8,4004.6,1.74798]
[1733575602143,1.80293044,4005.0,4004.6,1.74798]
[1733575602463,2.16329033,4004.9,4004.6,1.74798]
[1733575602666,0.86531613,4004.8,4004.6,1.74798]
[1733575602850,1.80293044,4005.0,4004.6,1.74798]
[1733575603057,2.1632651,4004.9,4004.6,1.74798]
[1733575603379,0.86530604,4004.8,4004.6,1.74798]
[1733575603681,1.80293044,4005.0,4004.6,1.74798]
[1733575603877,2.16324598,4004.9,4004.6,1.74798]
[1733575604043,0.86529839,4004.8,4004.6,1.74798]
[1733575604240,1.80293044,4005.0,4004.6,1.74798]
[1733575604440,2.16322958,4004.9,4004.6,1.74798]
[1733575604683,0.86529183,4004.8,4004.6,1.74798]
[1733575604884,1.80293044,4005.0,4004.4,0.8314]
[1733575605195,2.16322058,4004.9,4004.7,1.74794]
[1733575605412,0.86528823,4004.8,4004.7,1.74794]
[1733575606771,0.86526501,4004.8,4004.7,1.74794]
[1733575607299,1.80293044,4005.0,4004.7,1.74794]
[1733575607509,2.1631095,4004.9,4004.7,1.74794]
[1733575607815,0.86524727,4004.8,4004.7,1.74794]
[1733575608119,0.86524727,4004.8,4004.2,1.74816]
[1733575608275,0.86524727,4004.7,4004.1,2.56477]
[1733575608475,1.04723044,4004.9,4004.4,1.74806]
[1733575608687,2.49948978,4004.8,4004.4,1.74806]
[1733575608970,0.86527908,4004.7,4004.4,1.74806]
[1733575609183,0.33629208,4004.8,4004.4,1.74806]
[1733575609414,0.86528566,4004.7,4004.4,1.74806]
[1733575609603,0.33629208,4004.8,4004.4,1.74806]
[1733575609919,0.8268,4004.6,4003.8,4.74831]
[1733575610220,0.8268,4004.6,4004.1,1.74817]
[1733575610221,0.86533357,4004.5,4004.1,1.74817]
[1733575610434,1.87403044,4004.6,4004.1,1.74817]
[1733575610580,2.16340377,4004.5,4004.1,1.74817]
[1733575610780,1.87403044,4004.6,4004.1,1.74817]
[1733575610974,0.07366067,4004.4,4004.1,1.74817]
[1733575611176,0.37703129,4004.5,4003.9,1.74828]
[1733575611415,0.07366067,4004.3,4003.9,1.74828]
[1733575611713,3.06404219,4004.2,4003.7,0.999654]
[1733575612009,3.21081196,4004.1,4003.7,0.999654]
[1733575612214,3.21081196,4004.0,4003.7,0.999654]
[1733575612379,0.86543133,4003.9,4003.7,0.999654]
[1733575612580,0.07366067,4003.9,4003.7,0.999654]
[1733575613018,1.46636223,4004.1,4003.7,0.999654]
[1733575613189,0.07366067,4003.8,4003.7,0.999654]
[1733575613394,1.46636223,4004.1,4003.7,0.999654]
[1733575613596,0.88786067,4003.8,4003.7,0.999654]
[1733575613800,1.67956807,4003.8,4003.7,0.999654]
[1733575614014,1.75322874,4003.8,4003.7,0.999654]
[1733575616938,0.88786067,4003.8,4003.7,0.999654]
[1733575618245,0.07366067,4003.8,4003.7,0.999654]
[1733575618945,0.38531526,4004.0,4003.7,0.999654]
[1733575619149,0.93839339,4003.9,4003.7,0.999654]
[1733575619350,0.07366067,4003.9,4003.7,0.999654]
[1733575623423,1.29700591,4004.0,4003.7,0.999654]
[1733575623619,1.85743044,4004.1,4003.7,0.999654]
[1733575623961,2.16166905,4004.0,4003.7,0.999654]
[1733575624132,0.0717067,4003.9,4003.7,0.999654]
[1733575624335,1.85743044,4004.1,4003.7,0.999654]
[1733575624542,0.93632588,4004.0,4003.7,0.999654]
[1733575624726,0.0717067,4004.0,4003.7,0.999654]
[1733575626924,0.0717067,4004.0,4003.7,2.748024]
[1733575627254,0.7653,4003.9,4003.7,0.999654]
[1733575627815,0.0717067,4003.8,4003.7,0.999654]
[1733575632244,0.8382067,4003.8,4003.7,0.999654]
[1733575632448,1.15641405,4003.8,4003.7,0.999654]
[1733575633330,1.70641405,4003.8,4003.7,0.999654]
[1733575633551,2.57085188,4003.8,4003.7,0.999654]
[1733575633870,1.70641405,4003.8,4003.7,0.999654]
[1733575635066,0.0717067,4003.8,4003.7,0.999654]
[1733575635424,0.7665,4004.1,4003.7,0.999654]
[1733575635662,0.07138982,4003.8,4003.7,0.999654]
[1733575635828,0.7665,4004.1,4003.7,0.999654]
[1733575636030,0.07138982,4003.8,4003.7,0.999654]
[1733575636376,0.07138982,4003.8,4003.7,2.748024]
[1733575636578,0.7665,4004.1,4003.7,2.748024]
[1733575636731,0.07138982,4004.0,4003.7,2.748024]
[1733575637772,0.07138982,4003.9,4003.7,2.748024]
[1733575638072,0.705519,4004.1,4003.7,2.748024]
[1733575638273,0.06901016,4003.8,4003.7,2.748024]
[1733575638480,0.705519,4004.1,4003.7,2.748024]
[1733575638660,0.06901016,4003.8,4003.7,2.748024]
[1733575638865,0.705519,4004.1,4003.7,2.748024]
[1733575639050,0.06901016,4003.8,4003.7,2.748024]
[1733575639249,0.705519,4004.1,4003.7,2.748024]
[1733575639441,0.06901016,4003.8,4003.7,2.748024]
[1733575639641,0.705519,4004.1,4003.7,2.748024]
[1733575639860,0.06901016,4003.8,4003.7,2.748024]
[1733575640336,0.705519,4004.1,4003.7,2.748024]
[1733575640535,0.06901016,4004.0,4003.9,1.74829]
[1733575640733,1.04723044,4004.3,4003.9,1.74829]
[1733575640974,0.06901016,4004.2,4004.0,1.74823]
[1733575641186,0.8179,4004.4,4004.0,1.74823]
[1733575641475,0.06901016,4004.1,4004.0,1.74823]
[1733575641677,0.8179,4004.4,4004.0,1.74823]
[1733575641891,0.06901016,4004.1,4004.0,1.74823]
[1733575642064,0.8179,4004.4,4004.0,1.74823]
[1733575642253,0.06901016,4004.1,4004.0,1.74823]
[1733575642453,0.8179,4004.4,4004.0,1.74823]
[1733575642656,0.06901016,4004.1,4004.0,1.74823]
[1733575642883,0.8179,4004.4,4004.0,1.74823]
[1733575643069,0.06901016,4004.1,4004.0,1.74823]
[1733575643688,0.8179,4004.4,4004.0,1.74823]
[1733575643896,0.06901016,4004.1,4004.0,1.74823]
[1733575644052,0.8179,4004.4,4004.0,1.74823]
[1733575644253,0.06901016,4004.1,4004.0,1.74823]
[1733575644496,0.8179,4004.4,4004.0,1.74823]
[1733575644979,0.06901016,4004.3,4004.0,1.74823]
[1733575645752,0.06901016,4004.3,4003.9,0.7676]
[1733575645981,0.06901016,4004.3,4003.9,2.51588]
[1733575650206,0.06901016,4004.3,4003.9,1.74828]
[1733575650546,0.86514784,4004.2,4003.9,1.74828]
[1733575650705,0.06901016,4004.3,4003.9,1.74828]
[1733575650906,0.06906509,4004.1,4003.9,1.74828]
[1733575651080,1.86513044,4004.4,4003.9,1.74828]
[1733575651281,0.06906509,4004.0,4003.9,1.74828]
[1733575651480,1.86513044,4004.4,4003.9,1.74828]
[1733575651808,2.1632308,4004.3,4003.9,1.74828]
[1733575651985,0.86529232,4004.2,4003.9,1.74828]
[1733575652186,1.86513044,4004.4,4003.7,2.747994]
[1733575652384,3.27959926,4004.3,4003.7,2.747994]
[1733575652591,0.86532149,4004.2,4003.8,1.74833]
[1733575652804,0.86532149,4004.2,4003.7,0.999654]
[1733575652805,0.86547337,4004.1,4003.7,0.999654]
[1733575652976,0.86547337,4004.0,4003.7,2.748014]
[1733575653284,0.06906509,4003.9,4003.7,2.748014]
[1733575653801,0.06906509,4003.8,4003.7,2.748014]
[1733575654200,1.59723044,4004.2,4003.7,2.748014]
[1733575654418,0.06906509,4003.8,4003.7,2.748014]
[1733575654588,1.04723044,4004.1,4003.7,2.748014]
[1733575654795,2.23367922,4004.0,4003.7,2.748014]
[1733575654997,0.86584565,4003.9,4003.7,2.748014]
[1733575655197,0.06906509,4004.0,4003.7,2.748014]
[1733575655430,2.16493927,4003.9,4003.7,0.999654]
[1733575655609,0.86605814,4003.8,4003.7,0.999654]
[1733575655806,2.16514678,4003.8,4003.7,0.999654]
[1733575656331,3.28144231,4003.8,4003.7,0.999654]
[1733575656501,3.84754558,4003.8,4003.7,0.999654]
[1733575656696,2.80031514,4003.8,4003.7,0.999654]
[1733575658395,2.80083094,4003.8,4003.3,1.74854]
[1733575658596,3.21329981,4003.7,4003.3,1.74854]
[1733575658794,2.23456287,4003.6,4003.3,1.74854]
[1733575659041,2.23456287,4003.6,4003.1,0.999751]
[1733575659042,0.86626503,4003.5,4003.1,0.999751]
[1733575659336,0.06890029,4003.6,4003.1,0.999751]
[1733575659635,0.93515521,4003.5,4003.2,1.74859]
[1733575659834,0.06890029,4003.5,4003.2,1.74859]
[1733575660044,1.63876496,4003.4,4002.9,1.74871]
[1733575660243,0.86626496,4003.3,4002.9,1.74871]
[1733575660543,0.0684776,4003.3,4002.9,1.74871]
[1733575661625,0.86617444,4003.2,4002.9,1.74871]
[1733575661825,1.11611483,4003.3,4002.9,1.74871]
[1733575662140,0.7725,4003.4,4002.9,1.74871]
[1733575662141,0.93466552,4003.2,4002.9,1.74871]
[1733575662337,0.0684776,4003.2,4002.9,1.74871]
[1733575662538,1.04763723,4003.3,4002.9,1.74871]
[1733575662726,0.93457589,4003.2,4002.9,1.74871]
[1733575663072,0.0684776,4003.2,4002.9,1.74871]
[1733575663426,1.82013723,4003.4,4002.9,1.74871]
[1733575663627,0.0684776,4003.1,4002.9,1.74871]
[1733575663842,1.82013723,4003.4,4002.9,1.74871]
[1733575664040,0.0684776,4003.0,4002.9,1.74871]
[1733575664239,1.82013723,4003.4,4003.0,1.74868]
[1733575664440,0.0684776,4003.0,4002.9,1.74873]
[1733575664662,1.82013723,4003.4,4003.0,1.74867]
[1733575664857,0.86586459,4003.3,4003.0,1.74867]
[1733575665172,0.7725,4003.4,4003.0,1.74867]
[1733575665372,0.8658131,4003.3,4003.0,1.74867]
[1733575665567,0.7725,4003.4,4003.0,1.74867]
[1733575666371,0.86577915,4003.3,4003.1,1.74863]
[1733575666575,0.7725,4003.4,4003.1,1.74863]
[1733575667188,0.86572359,4003.3,4003.1,1.74863]
[1733575667388,0.7725,4003.4,4002.6,2.86932658]
[1733575667601,0.7725,4003.4,4002.8,1.74874]
[1733575667602,2.16429237,4003.3,4002.8,1.74874]
[1733575667782,0.86571653,4003.2,4002.8,1.74874]
[1733575667983,1.04763723,4003.3,4002.8,1.74874]
[1733575668183,0.86575171,4003.2,4002.8,1.74874]
[1733575668386,1.04763723,4003.3,4002.8,1.74874]
[1733575668613,0.8656543,4003.2,4002.8,1.74874]
[1733575668819,1.04763723,4003.3,4002.8,1.74874]
[1733575669004,0.86565504,4003.2,4002.8,1.74874]
[1733575669210,1.82013723,4003.4,4002.8,1.74874]
[1733575669422,2.16389463,4003.3,4002.8,1.74874]
[1733575669720,0.86555785,4003.2,4002.8,1.74874]
[1733575669899,1.04763723,4003.3,4002.8,1.74874]
[1733575670098,0.86557248,4003.2,4002.8,1.74874]
[1733575670298,0.55,4003.2,4002.6,2.53965]
[1733575671027,0.06822824,4003.1,4002.6,2.53965]
[1733575672923,0.06822824,4003.1,4002.6,1.74885]
[1733575673234,0.86520947,4003.0,4002.6,1.74885]
[1733575673530,0.06822824,4003.1,4002.6,1.74885]
[1733575673687,0.06811983,4002.9,4002.6,1.74885]
[1733575674024,0.06767951,4002.8,4002.6,1.74885]
[1733575674199,0.06767951,4002.8,4002.3,0.999919]
[1733575674385,1.2978166,4003.1,4002.4,0.45959576]
[1733575674386,1.04763723,4003.1,4002.4,0.45959576]
[1733575674586,0.93276669,4003.0,4002.4,0.45959576]
[1733575674783,0.06767951,4003.0,4002.4,0.45959576]
[1733575675025,0.06767951,4003.0,4002.4,2.20853576]
[1733575675324,0.8248,4002.9,4002.4,2.20853576]
[1733575675632,0.06723791,4002.8,4002.4,2.20853576]
[1733575677094,2.36833723,4003.2,4002.4,2.20853576]
[1733575677299,0.0667944,4002.7,4002.4,2.20853576]
[1733575677598,0.0663939,4002.6,4002.5,0.50554433]
[1733575677823,2.36833723,4003.2,4002.5,0.50554433]
[1733575678019,0.0663939,4002.6,4002.4,2.20853576]
[1733575678336,1.3207,4003.2,4002.4,2.20853576]
[1733575678536,0.06619947,4002.5,4002.4,1.74894]
[1733575678741,1.3207,4003.2,4002.4,1.74894]
[1733575679036,0.86463585,4003.1,4002.5,1.74889]
[1733575679342,0.06619947,4003.1,4002.5,1.74889]
[1733575679557,0.06619947,4003.1,4002.3,2.748879]
[1733575679835,0.06619947,4003.1,4003.0,1.74868]
[1733575680203,0.55,4003.5,4002.8,0.8012]
[1733575680543,0.93063293,4003.4,4002.8,2.54997]
[1733575680842,0.06619947,4003.4,4002.8,0.8012]
[1733575681011,0.06619947,4003.4,4002.9,1.74872]
[1733575681339,0.06619947,4003.4,4002.8,0.8012]
[1733575681340,0.06619947,4003.4,4003.0,1.74867]
[1733575681839,0.06619947,4003.4,4003.1,1.74862]
[1733575683201,0.06619947,4003.4,4003.1,2.003602]
[1733575683401,1.79923723,4003.9,4003.2,1.74859]
[1733575683602,0.93035921,4003.8,4003.2,1.74859]
[1733575683851,1.36253419,4003.8,4003.2,1.74859]
[1733575684019,1.36253419,4003.8,4003.0,1.74868]
[1733575684209,0.86433693,4003.7,4003.0,1.74868]
[1733575684552,1.04763723,4003.8,4003.0,1.74868]
[1733575684750,0.06603394,4003.6,4003.0,1.74868]
[1733575684911,1.04763723,4003.8,4003.0,1.74868]
[1733575685107,0.06603394,4003.5,4003.0,1.74868]
[1733575685451,0.06603394,4003.4,4003.0,1.74868]
[1733575685832,1.04763723,4003.8,4003.0,1.74868]
[1733575686038,0.06603394,4003.3,4003.0,1.74868]
[1733575686225,1.04763723,4003.8,4003.0,2.11153686]
[1733575686551,0.06603394,4003.2,4003.0,1.74868]
[1733575686842,2.16099765,4003.7,4003.0,1.74868]
[1733575686843,0.06603394,4003.1,4003.0,1.74868]
[1733575687214,1.29660862,4003.7,4003.0,1.74868]
[1733575687558,0.06603394,4003.6,4003.0,1.74868]
[1733575687916,1.04763723,4003.8,4003.0,1.74868]
[1733575688114,0.7516,4003.3,4002.5,2.57436]
[1733575688550,0.06618188,4003.2,4002.3,2.748899]
[1733575688852,0.06618188,4003.2,4002.3,1.74898]
[1733575690354,0.7516,4003.1,4002.3,1.74898]
[1733575690657,0.06599588,4003.0,4002.3,1.74898]
[1733575691515,0.06599588,4003.0,4002.2,1.5771]
[1733575691858,0.25251919,4003.0,4002.1,1.74907]
[1733575692462,0.86481327,4002.9,4002.1,1.74907]
[1733575692669,7.20967049,4002.8,4002.1,1.74907]
[1733575692847,0.7516,4002.6,4002.1,1.74907]
[1733575693174,0.7516,4002.6,4001.9,0.8255]
[1733575693339,0.7516,4002.6,4001.9,2.57463]
[1733575693541,0.06599588,4002.5,4002.0,1.74912]
[1733575694653,0.06599588,4002.5,4001.1,1.04327414]
[1733575694654,0.06599588,4002.5,4001.8,1.7492]
[1733575695201,0.864892,4002.4,4001.8,1.7492]
[1733575695340,0.06599588,4002.5,4001.8,1.7492]
[1733575695544,0.06582676,4002.4,4001.8,1.7492]
[1733575695767,1.79923723,4002.6,4001.8,1.7492]
[1733575695972,0.86473739,4002.5,4001.8,1.7492]
[1733575696143,0.06582676,4002.5,4001.5,0.8255]
[1733575696483,0.06582676,4002.5,4001.7,1.74925]
[1733575697380,0.06582676,4002.5,4001.8,1.7492]
[1733575697766,0.86474333,4002.4,4001.8,1.7492]
[1733575697945,1.79923723,4002.6,4001.8,1.7492]
[1733575698144,3.27536505,4002.5,4001.8,1.7492]
[1733575698445,0.86474479,4002.4,4001.8,1.7492]
[1733575698645,0.06582676,4002.5,4001.8,1.7492]
[1733575698845,0.86473268,4002.4,4001.8,1.7492]
[1733575699067,0.06582676,4002.4,4002.0,1.74912]
[1733575699683,1.79923723,4002.6,4002.0,1.74912]
[1733575699886,0.06582676,4002.3,4002.0,1.74912]
[1733575700089,1.79923723,4002.6,4002.0,1.74912]
[1733575700389,2.16212366,4002.5,4002.0,1.74912]
[1733575700593,0.93067622,4002.4,4002.0,1.74912]
[1733575700895,0.06582676,4002.4,4002.0,1.74912]
[1733575701495,1.29716718,4002.5,4002.0,1.74912]
[1733575701800,1.79923723,4002.6,4002.0,1.74912]
[1733575701953,2.22732813,4002.5,4002.0,1.74912]
[1733575702151,0.86477823,4002.4,4002.0,1.74912]
[1733575702386,1.79923723,4002.6,4002.0,1.74912]
[1733575702586,2.22735751,4002.5,4002.0,1.74912]
[1733575702787,0.86478987,4002.4,4002.0,1.74912]
[1733575702992,1.79923723,4002.6,4002.0,1.74912]
[1733575703153,2.22735859,4002.5,4002.0,1.74912]
[1733575703360,0.8647903,4002.4,4002.0,1.74912]
[1733575703577,1.79923723,4002.6,4001.8,1.74921]
[1733575703753,3.20959126,4002.5,4001.8,1.74921]
[1733575703953,0.86478161,4002.4,4001.8,1.74921]
[1733575704186,1.04763723,4002.5,4001.8,1.74921]
[1733575704392,0.93024191,4002.4,4001.8,1.74921]
[1733575704702,0.06538283,4002.4,4001.8,1.74921]
[1733575705055,1.04763723,4002.5,4001.8,1.74921]
[1733575705392,0.86484313,4002.4,4001.8,1.74921]
[1733575705704,0.06538283,4002.3,4001.8,1.74921]
[1733575706000,1.04763723,4002.5,4001.8,1.74921]
[1733575706159,0.86479386,4002.4,4001.8,1.74921]
[1733575706497,0.06538283,4002.4,4001.8,1.74921]
[1733575707008,0.06538283,4002.4,4001.6,1.74927]
[1733575707873,0.86474666,4002.3,4001.6,1.74927]
[1733575708218,1.11302006,4002.4,4001.6,1.74927]
[1733575708219,1.04763723,4002.4,4001.6,1.74927]
[1733575708369,0.93007678,4002.3,4001.6,1.74927]